fUSD/lending_fUSD_20241202
["ID","MTS","AMOUNT","RATE_DAILY","PERIOD"]
[343958831,1733145408670,500.0,6.7e-05,2]
[343958832,1733145409233,500.0,6.7e-05,2]
[343958833,1733145409990,504.64,6.7e-05,2]
[343958834,1733145412143,500.0,6.7e-05,2]
[343958835,1733145412752,500.0,6.7e-05,2]
[343958837,1733145437461,249.41,6.914e-05,2]
[343958839,1733145620109,150.0,6.875e-05,2]
[343958840,1733145620131,45.84,6.875e-05,2]
[343958842,1733146043426,104.16,7.094e-05,2]
[343958843,1733146043449,62.51,7.094e-05,2]
[343958856,1733146203159,87.49,7.094e-05,2]
[343958857,1733146203186,62.51,7.094e-05,2]
[343958858,1733146203309,87.49,7.094e-05,2]
[343958859,1733146203333,62.51,7.094e-05,2]
[343958860,1733146203461,87.49,7.094e-05,2]
[343958861,1733146203490,62.51,7.094e-05,2]
[343958862,1733146203599,150.0,7.094e-05,2]
[343958863,1733146203738,228.13737688,7.094e-05,2]
[343958864,1733146208339,20000.0,0.00015,120]
[343958888,1733146232420,-366.0,7.471e-05,2]
[343958889,1733146232429,-1114.29414807,7.546e-05,2]
[343958890,1733146232439,-1130.36355324,7.546e-05,2]
[343958891,1733146232449,-1001.02040232,7.546e-05,2]
[343958892,1733146232458,-6740.29076959,7.546e-05,2]
[343958975,1733146235326,-365.70305612,7.546e-05,2]
[343958977,1733146235335,-884.04315988,7.546e-05,2]
[343958979,1733146235345,-3606.983513,7.546e-05,2]
[343958981,1733146235355,-4832.43491083,7.546e-05,2]
[343958983,1733146235366,-1267.64632329,7.546e-05,2]
[343958986,1733146235376,-4969.31775754,7.546e-05,2]
[343958988,1733146235386,-7657.12,7.546e-05,2]
[343958999,1733146235470,-1084.95565895,7.546e-05,2]
[343959001,1733146235482,-881.08675534,7.546e-05,2]
[343959229,1733146238432,-1736.994345,7.546e-05,2]
[343959230,1733146238443,-2119.827648,7.546e-05,2]
[343959240,1733146238542,-450.94402212,7.546e-05,2]
[343959243,1733146238556,-500.0,7.546e-05,2]
[343959245,1733146238571,-291.01072,7.546e-05,2]
[343959247,1733146238582,-954.6763968,7.546e-05,2]
[343959253,1733146238632,-28090.46496354,7.546e-05,2]
[343959255,1733146238641,-10377.47907192,7.587e-05,2]
[343959257,1733146238651,-2500.0,7.6e-05,2]
[343959258,1733146238662,-500.0,7.638e-05,2]
[343959259,1733146238671,-633.0,7.66e-05,2]
[343959261,1733146238680,-435.18,7.69e-05,2]
[343959263,1733146238691,-435.18,7.69e-05,2]
[343959265,1733146238701,-435.18,7.69e-05,2]
[343959267,1733146238710,-435.18,7.69e-05,2]
[343959269,1733146238719,-176.89544316,7.699e-05,2]
[343959270,1733146238728,-608.43,7.699e-05,2]
[343959271,1733146238737,-2660.23,7.699e-05,2]
[343959272,1733146238747,-2383.29999099,7.699e-05,2]
[343959273,1733146238756,-141725.81788783,7.7e-05,2]
[343959274,1733146239119,-9588.59951417,7.7e-05,2]
[343959286,1733146240115,-361.88,7.546e-05,2]
[343959287,1733146240143,-735.57999201,7.546e-05,2]
[343959288,1733146240152,-4439.42283702,7.7e-05,2]
[343959289,1733146240167,-3350.70519492,7.7e-05,2]
[343959290,1733146240216,-510.31,7.7e-05,2]
[343959291,1733146240264,-651.8009235,7.7e-05,2]
[343959292,1733146240287,-7209.33353,7.7e-05,2]
[343959293,1733146240298,-23928.14922492,7.7e-05,2]
[343959307,1733146243266,-5228.43484837,7.7e-05,2]
[343959311,1733146243454,-803.43871896,7.7e-05,2]
[343959312,1733146243467,-3618.4900949,7.7e-05,2]
[343959318,1733146243666,-485.834696,7.7e-05,2]
[343959319,1733146243799,-4742.77519781,7.7e-05,2]
[343959320,1733146243811,-593.62227942,7.7e-05,2]
[343959328,1733146247572,-9556.63348572,7.7e-05,2]
[343959329,1733146247584,-441.40431904,7.7e-05,2]
[343959330,1733146247612,-530.21975952,7.7e-05,2]
[343959331,1733146247659,-2469.0,7.7e-05,2]
[343959332,1733146247698,-30126.0074879,7.7e-05,2]
[343959333,1733146247708,-176.91559607,7.7e-05,2]
[343959334,1733146247717,-504.0,7.7e-05,2]
[343959335,1733146247726,-1971.11213562,7.7e-05,2]
[343959337,1733146714951,387.47,6.931e-05,2]
[343959339,1733146896443,166.66,7.127e-05,2]
[343959625,1733147324816,199.52,6.851e-05,2]
[343959633,1733147432653,-1040.10470408,7.546e-05,2]
[343959634,1733147432663,-1063.44642132,7.546e-05,2]
[343959635,1733147432672,-1132.08164361,7.546e-05,2]
[343959636,1733147432682,-300.0,7.599e-05,2]
[343959637,1733147432692,-2500.0,7.6e-05,2]
[343959638,1733147432701,-500.0,7.6e-05,2]
[343959639,1733147432711,-150.0,7.671e-05,2]
[343959640,1733147432722,-798.98,7.69e-05,2]
[343959641,1733147432731,-150.0,7.698e-05,2]
[343959642,1733147432741,-1985.771,7.699e-05,2]
[343959643,1733147432750,-18998.36150858,7.699e-05,2]
[343959644,1733147432762,-2489.33305216,7.699e-05,2]
[343959645,1733147432772,-1773.48,7.699e-05,2]
[343959646,1733147432782,-583.08,7.699e-05,2]
[343959647,1733147432791,-1161.95174348,7.7e-05,2]
[343959648,1733147432809,-2305.80404,7.7e-05,2]
[343959649,1733147432832,-1023.0,7.7e-05,2]
[343959650,1733147432843,-1677.693493,7.7e-05,2]
[343959651,1733147432854,-208914.04073541,7.7e-05,2]
[343959652,1733147432863,-510.0,7.7e-05,2]
[343959653,1733147432877,-281266.65126459,7.7e-05,2]
[343959654,1733147432887,-7186.5,7.7e-05,2]
[343959735,1733147438908,-42427.6,7.7e-05,2]
[343959736,1733147438920,-899.33381011,7.7e-05,2]
[343959737,1733147438932,-2995.55143707,7.7e-05,2]
[343959738,1733147439217,-1989.26833443,7.7e-05,2]
[343959739,1733147439233,-5012.8646784,7.7e-05,2]
[343959750,1733147442176,-7043.4,7.7e-05,2]
[343959751,1733147442187,-906.99154893,7.7e-05,2]
[343959752,1733147442198,-2369.05249025,7.7e-05,2]
[343959753,1733147442245,-1499.17142135,7.7e-05,2]
[343959755,1733147443410,-6061.46467398,7.7e-05,2]
[343959756,1733147443422,-5006.86942367,7.7e-05,2]
[343959757,1733147443458,-1496.21854967,7.7e-05,2]
[343959758,1733147443470,-6232.68614865,7.7e-05,2]
[343959759,1733147443562,-18084.6711178,7.7e-05,2]
[343959781,1733147446411,-513.0,7.7e-05,2]
[343959782,1733147446421,-54251.99998,7.7e-05,2]
[343959783,1733147446482,-482.34852124,7.7e-05,2]
[343959784,1733147446493,-1241.816858,7.7e-05,2]
[343959785,1733147446530,-340.7459988,7.7e-05,2]
[343959786,1733147446542,-2451.011,7.7e-05,2]
[343959787,1733147446614,-488.88,7.7e-05,2]
[343959788,1733147446625,-481.40144037,7.7e-05,2]
[343959789,1733147446640,-537.8580018,7.7e-05,2]
[343959794,1733147509360,166.67,7.077e-05,2]
[343959795,1733147516266,254.3595,7e-05,2]
[343959800,1733147921169,10028.37,6.862e-05,2]
[343959812,1733147998176,163.0,6.849e-05,2]
[343959816,1733148198457,166.67,7.039e-05,2]
[343959930,1733148590747,309.97,6.823e-05,2]
[343959940,1733148632025,-155.0,7.397e-05,2]
[343959941,1733148632035,-220.49,7.397e-05,2]
[343959942,1733148632044,-1000.0,7.5e-05,2]
[343959943,1733148632053,-1111.92319577,7.546e-05,2]
[343959944,1733148632063,-1048.25698645,7.546e-05,2]
[343959945,1733148632072,-1012.54411641,7.546e-05,2]
[343959946,1733148632081,-159.29929669,7.546e-05,2]
[343959947,1733148632090,-2500.0,7.6e-05,2]
[343959948,1733148632100,-1000.0,7.6e-05,2]
[343959949,1733148632109,-1629.88477722,7.63e-05,2]
[343959950,1733148632149,-1291.1088336,7.63e-05,2]
[343959951,1733148632236,-7245.98701309,7.63e-05,2]
[343959952,1733148634056,-1019.59,7.63e-05,2]
[343959953,1733148634067,-1024.5,7.63e-05,2]
[343959954,1733148634078,-928.704414,7.63e-05,2]
[343959955,1733148634089,-1221.538245,7.63e-05,2]
[343959956,1733148634101,-842.8142271,7.63e-05,2]
[343959957,1733148634114,-5535.865,7.634e-05,2]
[343959958,1733148634125,-449.0,7.671e-05,2]
[343959959,1733148634135,-258.7663302,7.673e-05,2]
[343959960,1733148634145,-500.0,7.673e-05,2]
[343959962,1733148634154,-500.0,7.673e-05,2]
[343959964,1733148634164,-309.97,7.676e-05,2]
[343959965,1733148634174,-150.0,7.679e-05,2]
[343959967,1733148634184,-1261.0,7.68e-05,2]
[343959970,1733148634195,-566.0,7.68e-05,2]
[343959971,1733148634209,-630.0,7.68e-05,2]
[343959973,1733148634219,-1893.0,7.68e-05,2]
[343959976,1733148634229,-870.09,7.68e-05,2]
[343959979,1733148634239,-1588.617,7.699e-05,2]
[343959982,1733148634249,-634.88,7.699e-05,2]
[343959985,1733148634259,-2525.37,7.699e-05,2]
[343959988,1733148634270,-230629.6057323,7.699e-05,2]
[343959991,1733148634280,-4193.8971,7.699e-05,2]
[343959994,1733148634290,-544.0,7.699e-05,2]
[343959996,1733148634300,-1377729.516521,7.7e-05,2]
[343960013,1733148637580,-2164.53561099,7.7e-05,2]
[343960014,1733148637592,-4019.208161,7.7e-05,2]
[343960015,1733148637621,-3355.37403136,7.7e-05,2]
[343960016,1733148637632,-1958.03623089,7.7e-05,2]
[343960017,1733148637644,-11628.40523643,7.7e-05,2]
[343960018,1733148637681,-785.09186819,7.7e-05,2]
[343960019,1733148637693,-6990.67391811,7.7e-05,2]
[343960020,1733148637704,-309.7408672,7.7e-05,2]
[343960021,1733148637718,-24645.79919131,7.7e-05,2]
[343960022,1733148637746,-262.47107087,7.7e-05,2]
[343960023,1733148637757,-11835.96535534,7.7e-05,2]
[343960028,1733148639462,-1778.21565865,7.7e-05,2]
[343960029,1733148639904,-505.79961765,7.7e-05,2]
[343960030,1733148639916,-6103.41182425,7.7e-05,2]
[343960031,1733148639979,-2882.9756087,7.7e-05,2]
[343960032,1733148640015,-3613.95882097,7.7e-05,2]
[343960033,1733148640076,-571.98,7.7e-05,2]
[343960034,1733148640124,-6846.5187853,7.7e-05,2]
[343960035,1733148640135,-2902.49804908,7.7e-05,2]
[343960046,1733148643071,-8062.19798742,7.7e-05,2]
[343960047,1733148643082,-5342.0,7.7e-05,2]
[343960048,1733148643303,-1870.49375,7.7e-05,2]
[343960049,1733148643315,-1138.08,7.7e-05,2]
[343960050,1733148643377,-343582.6006178,7.7e-05,2]
[343960051,1733148643835,-5736.81335698,7.7e-05,2]
[343960052,1733148643850,-2703.37818078,7.7e-05,2]
[343960053,1733148643862,-111531.90300293,7.7e-05,2]
[343960054,1733148643922,-7864.14520702,7.7e-05,2]
[343960055,1733148643933,-19193.5755449,7.7e-05,2]
[343960057,1733148645972,-52972.34041621,7.7e-05,2]
[343960058,1733148645984,-855.8723272,7.7e-05,2]
[343960059,1733148645995,-4795.38516007,7.7e-05,2]
[343960060,1733148646006,-113174.6080214,7.7e-05,2]
[343960061,1733148646016,-71325.39199927,7.7e-05,2]
[343960062,1733148646027,-1822.03679999,7.7e-05,2]
[343960068,1733149314965,226.42,6.884e-05,2]
[343960073,1733149520508,166.67,7.071e-05,2]
[343960080,1733149674168,-166.66,7.209e-05,2]
[343960081,1733149674191,-350.83933929,7.5e-05,2]
[343960082,1733149674214,-1000.0,7.5e-05,2]
[343960083,1733149674235,-175.3044957,7.545e-05,2]
[343960084,1733149674256,-1039.22172538,7.546e-05,2]
[343960085,1733149674278,-6969.3995,7.573e-05,2]
[343960086,1733149674299,-340.5707,7.599e-05,2]
[343960087,1733149674321,-1000.0,7.6e-05,2]
[343960088,1733149674341,-2500.0,7.6e-05,2]
[343960089,1733149674363,-7183.0,7.623e-05,2]
[343960090,1733149674383,-623.1665282,7.673e-05,2]
[343960091,1733149674405,-866.53,7.68e-05,2]
[343960092,1733149674427,-435.18,7.68e-05,2]
[343960093,1733149674451,-150.0,7.68e-05,2]
[343960094,1733149674473,-300.0,7.68e-05,2]
[343960095,1733149674495,-1368.318,7.698e-05,2]
[343960096,1733149674517,-150.0,7.698e-05,2]
[343960097,1733149674538,-18873.43794263,7.699e-05,2]
[343960098,1733149674558,-558.78,7.699e-05,2]
[343960099,1733149674583,-34315.5917688,7.7e-05,2]
[343960140,1733149832575,-504.73368,7.546e-05,2]
[343960141,1733149832590,-639.61939886,7.546e-05,2]
[343960142,1733149832600,-2182.30490603,7.6e-05,2]
[343960143,1733149832713,-304.304,7.6e-05,2]
[343960144,1733149832725,-13.39109397,7.6e-05,2]
[343960145,1733149832737,-1000.0,7.6e-05,2]
[343960146,1733149832748,-150.0,7.699e-05,2]
[343960147,1733149832760,-119236.60940603,7.7e-05,2]
[343960148,1733149832776,-3408.0,7.7e-05,2]
[343960149,1733149832787,-1075.39500002,7.7e-05,2]
[343960150,1733149832855,-602247.14581193,7.7e-05,2]
[343960153,1733149837919,-1830.01165843,7.7e-05,2]
[343960154,1733149838012,-3923.2094426,7.7e-05,2]
[343960161,1733149838195,-292.6,7.7e-05,2]
[343960230,1733149841140,-29077.52998485,7.7e-05,2]
[343960231,1733149841197,-678.15000001,7.7e-05,2]
[343960232,1733149841274,-54368.67946162,7.7e-05,2]
[343960253,1733149843092,-381.8492,7.7e-05,2]
[343960256,1733149843103,-738.79316574,7.7e-05,2]
[343960258,1733149843114,-948.18799716,7.7e-05,2]
[343960260,1733149843125,-1142.6499999,7.7e-05,2]
[343960262,1733149843136,-2313.9666447,7.7e-05,2]
[343960294,1733149843371,-12.8750021,7.7e-05,2]
[343960296,1733149843386,-14404.21052014,7.7e-05,2]
[343960298,1733149843401,-680.50000019,7.7e-05,2]
[343960432,1733149847092,-2835.499998,7.7e-05,2]
[343960433,1733149847133,-862.500075,7.7e-05,2]
[343960434,1733149847256,-40890.629262,7.7e-05,2]
[343960435,1733149847268,-607.49963,7.7e-05,2]
[343960436,1733149847485,-2445.61102,7.7e-05,2]
[343960437,1733149855623,200.0,7e-05,2]
[343960438,1733149857869,500.0,7.1e-05,2]
[343960439,1733149909559,22604.72,6.999e-05,2]
[343960440,1733150001473,151.73,6.983e-05,2]
[343960441,1733150180565,150.0,0.000171,60]
[343960442,1733150305994,250.0,6.906e-05,2]
[343960443,1733150317958,1000.0,7e-05,2]
[343960449,1733150330068,207.87271345,7e-05,2]
[343960453,1733150524417,200.0,6.918e-05,2]
[343960454,1733150749762,150.0,6.929e-05,2]
[343960455,1733150807800,166.66,7.119e-05,2]
[343960456,1733150813255,185.98,6.912e-05,2]
[343960492,1733151032005,-150.0,7.185e-05,2]
[343960494,1733151032015,-166.67,7.186e-05,2]
[343960496,1733151032024,-1000.0,7.4e-05,2]
[343960497,1733151032033,-150.0,7.442e-05,2]
[343960498,1733151032042,-820.41874735,7.5e-05,2]
[343960499,1733151032053,-179.58125265,7.5e-05,2]
[343960500,1733151032063,-150.0,7.562e-05,2]
[343960501,1733151032072,-30.31316506,7.6e-05,2]
[343960505,1733151032141,-412.91683494,7.6e-05,2]
[343960506,1733151032150,-765.65,7.6e-05,2]
[343960508,1733151032159,-222.47316506,7.6e-05,2]
[343960509,1733151032171,-2277.52683494,7.6e-05,2]
[343960510,1733151032180,-3850.4074,7.6e-05,2]
[343960511,1733151032189,-1059.99999,7.63e-05,2]
[343960512,1733151032198,-150.0,7.672e-05,2]
[343960513,1733151032208,-500.0,7.673e-05,2]
[343960514,1733151032218,-501.36358668,7.673e-05,2]
[343960515,1733151032227,-500.0,7.673e-05,2]
[343960516,1733151032236,-501.61860962,7.673e-05,2]
[343960517,1733151032246,-500.0,7.673e-05,2]
[343960518,1733151032256,-150.00000003,7.699e-05,2]
[343960519,1733151032265,-150.0,7.699e-05,2]
[343960520,1733151032275,-574.88,7.699e-05,2]
[343960521,1733151032284,-1161.95174348,7.7e-05,2]
[343960522,1733151032294,-191.965,7.7e-05,2]
[343960523,1733151032303,-1578531.53631392,7.7e-05,2]
[343960524,1733151032315,-96740.06653053,7.7e-05,2]
[343960544,1733151032494,-1133.25,7.7e-05,2]
[343960548,1733151032506,-99756.18702764,7.7e-05,2]
[343960552,1733151032517,-85142.00328379,7.7e-05,2]
[343960555,1733151032528,-378294.06902407,7.7e-05,2]
[343960558,1733151032540,-19037.85919437,7.7e-05,2]
[343960561,1733151032555,-6325.76996363,7.7e-05,2]
[343960563,1733151032567,-28943.7,7.7e-05,2]
[343960566,1733151032578,-1982.70597584,7.7e-05,2]
[343960568,1733151032593,-5562.87703074,7.7e-05,2]
[343960701,1733151038747,-500.0,7.673e-05,2]
[343960703,1733151038757,-6238.78782943,7.7e-05,2]
[343960705,1733151038769,-925.1175152,7.7e-05,2]
[343960708,1733151038822,-441997.16714184,7.7e-05,2]
[343960709,1733151038837,-3429.54663,7.7e-05,2]
[343960710,1733151038874,-26823.370348,7.7e-05,2]
[343960711,1733151038886,-2587.37904,7.7e-05,2]
[343960712,1733151039082,-1317.863,7.7e-05,2]
[343960713,1733151039098,-2156.920392,7.7e-05,2]
[343960717,1733151040315,-394.485,7.7e-05,2]
[343960719,1733151040376,-21841.6064382,7.7e-05,2]
[343960721,1733151040388,-2022.50935312,7.7e-05,2]
[343960723,1733151040450,-4614.79977,7.7e-05,2]
[343960741,1733151042919,-9689.0,7.7e-05,2]
[343960742,1733151042931,-429.49258071,7.7e-05,2]
[343960743,1733151042942,-330.12,7.7e-05,2]
[343960744,1733151042953,-2884.20638088,7.7e-05,2]
[343960746,1733151042964,-18051.47537919,7.7e-05,2]
[343960752,1733151042988,-479.7404297,7.7e-05,2]
[343960753,1733151043000,-4112.77557866,7.7e-05,2]
[343960754,1733151043011,-859.89232659,7.7e-05,2]
[343960755,1733151043023,-1632.33978206,7.7e-05,2]
[343960756,1733151043033,-14863.01218434,7.7e-05,2]
[343960757,1733151043057,-612.15,7.7e-05,2]
[343960758,1733151043067,-2327.60192712,7.7e-05,2]
[343960759,1733151043078,-4578.3547117,7.7e-05,2]
[343960760,1733151043092,-7282.85653353,7.7e-05,2]
[343960762,1733151043135,-982.20202015,7.7e-05,2]
[343960763,1733151043147,-68195.81406945,7.7e-05,2]
[343960765,1733151043158,-875.69756151,7.7e-05,2]
[343960767,1733151043212,-7083.67013133,7.7e-05,2]
[343960768,1733151043224,-511.54145382,7.7e-05,2]
[343960769,1733151043235,-1826.37984522,7.7e-05,2]
[343960777,1733151043346,-7869.708,7.7e-05,2]
[343960780,1733151043358,-5682.0000295,7.7e-05,2]
[343960782,1733151043370,-3564.50000176,7.7e-05,2]
[343960954,1733151046145,-6144.97999977,7.7e-05,2]
[343960955,1733151046183,-767.61381199,7.7e-05,2]
[343960956,1733151046194,-7471.53408,7.7e-05,2]
[343960961,1733151046246,-1597.98431496,7.7e-05,2]
[343960962,1733151046257,-9771.06818,7.7e-05,2]
[343960964,1733151046320,-2639.43,7.7e-05,2]
[343960965,1733151046332,-1832.10439084,7.7e-05,2]
[343960966,1733151046347,-425.93332457,7.7e-05,2]
[343960998,1733151208721,168.37,6.925e-05,2]
[343960999,1733151382266,1975.24,6.897e-05,2]
[343961000,1733151390289,190.77,7e-05,2]
[343961001,1733151497291,166.66,7.077e-05,2]
[343961002,1733151537883,356.52,6.882e-05,2]
[343961004,1733151637303,-1000.0,7.5e-05,2]
[343961005,1733151637325,-8689.26,7.5e-05,2]
[343961006,1733151637345,-1080.98092068,7.546e-05,2]
[343961007,1733151637367,-563.75907932,7.546e-05,2]
[343961008,1733151740013,150.0,7.16e-05,2]
[343961009,1733151875191,225.9927945,0.00011625,29]
[343961010,1733151875559,225.9927945,0.0001114,29]
[343961011,1733151875912,225.9927945,0.00010656,29]
[343961012,1733151876858,225.9927945,0.00010172,29]
[343961296,1733152103089,166.67,7.076e-05,2]
[343961297,1733152113894,151.73,6.87e-05,2]
[343961323,1733152200997,1320.0,0.000191,120]
[343961329,1733152232105,-1000.0,7.5e-05,2]
[343961330,1733152232115,-1170.0,7.5e-05,2]
[343961331,1733152232125,-531.63985786,7.546e-05,2]
[343961332,1733152232134,-551.0,7.589e-05,2]
[343961333,1733152232144,-150.0,7.599e-05,2]
[343961334,1733152232154,-300.0,7.599e-05,2]
[343961335,1733152232163,-322.97379692,7.6e-05,2]
[343961336,1733152232175,-6380.3763,7.6e-05,2]
[343961337,1733152232185,-2500.0,7.6e-05,2]
[343961338,1733152232195,-1000.0,7.6e-05,2]
[343961339,1733152232205,-1140.30934283,7.666e-05,2]
[343961340,1733152232215,-430.4568,7.671e-05,2]
[343961341,1733152232228,-150.86651653,7.673e-05,2]
[343961342,1733152232238,-500.0,7.673e-05,2]
[343961343,1733152232247,-209.38507725,7.673e-05,2]
[343961344,1733152232258,-5959.0,7.685e-05,2]
[343961345,1733152232267,-13707.0,7.685e-05,2]
[343961346,1733152232277,-208.1846177,7.689e-05,2]
[343961347,1733152232286,-624.553854,7.689e-05,2]
[343961348,1733152232296,-767.69,7.69e-05,2]
[343961349,1733152232306,-435.18,7.69e-05,2]
[343961350,1733152232316,-767.69,7.69e-05,2]
[343961351,1733152232326,-769.08,7.69e-05,2]
[343961352,1733152232336,-1460.83,7.69e-05,2]
[343961353,1733152232346,-435.18,7.69e-05,2]
[343961354,1733152232355,-1535.38,7.69e-05,2]
[343961355,1733152232365,-971.25,7.69e-05,2]
[343961356,1733152232375,-767.69,7.69e-05,2]
[343961357,1733152232385,-767.69,7.69e-05,2]
[343961358,1733152232394,-807.4227045,7.694e-05,2]
[343961359,1733152232404,-1864.0919747,7.694e-05,2]
[343961360,1733152232414,-500.0,7.699e-05,2]
[343961361,1733152232424,-186.574,7.699e-05,2]
[343961362,1733152232433,-150.01,7.699e-05,2]
[343961363,1733152232443,-1998.10124795,7.699e-05,2]
[343961364,1733152232453,-12751.26023274,7.699e-05,2]
[343961365,1733152232464,-2120.221,7.699e-05,2]
[343961366,1733152232477,-567.2,7.699e-05,2]
[343961367,1733152232487,-250000.0,7.699e-05,2]
[343961368,1733152232498,-3441027.96503944,7.7e-05,2]
[343961370,1733152232511,-1317.9043905,7.7e-05,2]
[343961372,1733152232524,-2651416.61324742,7.7e-05,2]
[343961374,1733152232534,-4391.94,7.7e-05,2]
[343961376,1733152232545,-1862803.53631311,7.7e-05,2]
[343961381,1733152232591,-7235.84574469,7.7e-05,2]
[343961384,1733152232603,-5405.05361082,7.7e-05,2]
[343961393,1733152232681,-2624.8891397,7.7e-05,2]
[343961395,1733152232692,-22597.2041848,7.7e-05,2]
[343961402,1733152232756,-8304.22633917,7.7e-05,2]
[343961405,1733152232768,-695.16061057,7.7e-05,2]
[343961436,1733152238211,-60799.32294842,7.7e-05,2]
[343961437,1733152238243,-10393.96,7.7e-05,2]
[343961438,1733152238254,-8654.65504435,7.7e-05,2]
[343961439,1733152238266,-118326.15204094,7.7e-05,2]
[343961440,1733152238275,-66546.92399348,7.7e-05,2]
[343961441,1733152238318,-3610.98361936,7.7e-05,2]
[343961442,1733152238330,-19236.80981559,7.7e-05,2]
[343961443,1733152238341,-8752.22233078,7.7e-05,2]
[343961444,1733152238378,-911.79949429,7.7e-05,2]
[343961446,1733152238389,-751.17725107,7.7e-05,2]
[343961447,1733152238399,-7359.99975,7.7e-05,2]
[343961448,1733152238446,-1994.7388747,7.7e-05,2]
[343961449,1733152238457,-1895.39,7.7e-05,2]
[343961450,1733152238469,-316.55141143,7.7e-05,2]
[343961467,1733152240345,-722.88000006,7.7e-05,2]
[343961468,1733152240357,-3366.0,7.7e-05,2]
[343961469,1733152240402,-9920.5,7.7e-05,2]
[343961470,1733152240413,-1750.0,7.7e-05,2]
[343961471,1733152240424,-214435.29030654,7.7e-05,2]
[343961472,1733152240436,-282.87838305,7.7e-05,2]
[343961473,1733152240447,-350.74784707,7.7e-05,2]
[343961474,1733152240459,-1921.68795143,7.7e-05,2]
[343961475,1733152240525,-516.26,7.7e-05,2]
[343961476,1733152240575,-686.24633394,7.7e-05,2]
[343961477,1733152240588,-9951.96449474,7.7e-05,2]
[343961478,1733152240599,-18064.2806744,7.7e-05,2]
[343961479,1733152240611,-14584.445,7.7e-05,2]
[343961480,1733152240622,-78054.39667028,7.7e-05,2]
[343961493,1733152243052,-183.72844237,7.699e-05,2]
[343961494,1733152243063,-599.45156563,7.7e-05,2]
[343961496,1733152243164,-1898.86780419,7.7e-05,2]
[343961497,1733152243176,-1329.951685,7.7e-05,2]
[343961498,1733152243188,-325.892,7.7e-05,2]
[343961499,1733152243199,-320.736,7.7e-05,2]
[343961500,1733152243210,-1273.2314635,7.7e-05,2]
[343961501,1733152243222,-539.946321,7.7e-05,2]
[343961502,1733152243237,-923.77241905,7.7e-05,2]
[343961503,1733152243259,-389.3613005,7.7e-05,2]
[343961504,1733152243270,-960.87,7.7e-05,2]
[343961505,1733152243281,-5126.11340402,7.7e-05,2]
[343961506,1733152243351,-741.65,7.7e-05,2]
[343961530,1733152246071,-86697.72487648,7.7e-05,2]
[343961531,1733152246082,-4177.62856255,7.7e-05,2]
[343961532,1733152246093,-1927.16423642,7.7e-05,2]
[343961533,1733152246105,-1380.24864,7.7e-05,2]
[343961534,1733152246116,-9656.1738,7.7e-05,2]
[343961535,1733152246129,-1185.8655861,7.7e-05,2]
[343961536,1733152246141,-1466.934062,7.7e-05,2]
[343961537,1733152246210,-910.44594001,7.7e-05,2]
[343961538,1733152246296,-145199.99998837,7.7e-05,2]
[343961539,1733152246308,-395.6,7.7e-05,2]
[343961559,1733152727824,-1233.33879809,7.546e-05,2]
[343961560,1733152727845,-310.1717,7.599e-05,2]
[343961561,1733152727866,-2500.0,7.6e-05,2]
[343961562,1733152727887,-1000.0,7.6e-05,2]
[343961563,1733152727908,-500.0,7.673e-05,2]
[343961564,1733152727935,-571.99948245,7.673e-05,2]
[343961565,1733152727960,-1188.1225097,7.689e-05,2]
[343961566,1733152727988,-1764.76205,7.689e-05,2]
[343961567,1733152728015,-150.0,7.689e-05,2]
[343961568,1733152728045,-1732.183,7.689e-05,2]
[343961569,1733152728073,-97056.42245976,7.69e-05,2]
[343961570,1733152892823,225.992796,0.00011382,29]
[343961571,1733152894976,225.992796,0.00010656,29]
[343961585,1733153102809,765.19208097,6.904e-05,2]
[343961586,1733153103140,765.19208097,6.912e-05,2]
[343961587,1733153103486,765.19208097,6.92e-05,2]
[343961588,1733153103801,765.19208097,6.927e-05,2]
[343961589,1733153104148,765.19208097,6.935e-05,2]
[343961590,1733153104473,765.19208097,6.943e-05,2]
[343961591,1733153104847,765.19208097,6.951e-05,2]
[343961592,1733153105288,765.19208097,6.958e-05,2]
[343961593,1733153105675,765.19208097,6.966e-05,2]
[343961594,1733153106049,765.19208097,6.974e-05,2]
[343961595,1733153106788,765.19208097,6.982e-05,2]
[343961596,1733153106912,765.19208097,6.989e-05,2]
[343961597,1733153107098,765.19208097,6.997e-05,2]
[343961598,1733153107456,765.19208097,7.005e-05,2]
[343961599,1733153107919,765.19208097,7.013e-05,2]
[343961600,1733153108248,765.19208097,7.02e-05,2]
[343961601,1733153108553,765.19208097,7.028e-05,2]
[343961602,1733153108937,765.19208097,7.036e-05,2]
[343961603,1733153109282,765.19208097,7.044e-05,2]
[343961604,1733153109644,765.19208097,7.051e-05,2]
[343961605,1733153109958,765.19208097,7.059e-05,2]
[343961606,1733153110310,765.19208097,7.067e-05,2]
[343961607,1733153110630,765.19208097,7.075e-05,2]
[343961608,1733153110948,765.19208097,7.082e-05,2]